bitfinex-derivatives/quotes_BTCF0:USTF0_20250608
["timestamp","ask_amount","ask_price","bid_price","bid_amount"]
[1749404621170,1.78275579,106270.0,106260.0,0.26602928]
[1749404621373,1.96229517,106270.0,106260.0,0.07791878]
[1749404624769,1.96229517,106270.0,106260.0,0.26602928]
[1749404625360,1.78275579,106270.0,106260.0,0.26602928]
[1749404625573,1.68359579,106270.0,106260.0,0.26602928]
[1749404625765,1.78271579,106270.0,106260.0,0.26602928]
[1749404629075,1.78271579,106270.0,106260.0,0.07791878]
[1749404632781,1.96225517,106270.0,106260.0,0.07791878]
[1749404634281,1.96225517,106270.0,106260.0,0.26602928]
[1749404636381,1.96225517,106270.0,106260.0,0.07791878]
[1749404636985,1.96225517,106270.0,106260.0,0.26602928]
[1749404637283,1.96225517,106270.0,106260.0,0.47151696]
[1749404638283,1.96225517,106270.0,106260.0,0.26602928]
[1749404638888,0.1881105,106260.0,106250.0,1.03049691]
[1749404639185,1.56099215,106260.0,106250.0,0.55478491]
[1749404639382,1.56099215,106260.0,106250.0,0.98346491]
[1749404639685,1.56099215,106260.0,106250.0,0.50256221]
[1749404640089,1.56099215,106260.0,106250.0,0.51356221]
[1749404640475,0.1881282,106250.0,106240.0,0.2927892]
[1749404640683,1.47569047,106250.0,106240.0,0.9096151]
[1749404641083,1.46651807,106250.0,106240.0,0.6168259]
[1749404641284,1.46651807,106250.0,106240.0,0.63025903]
[1749404641777,1.28697869,106250.0,106240.0,0.6168259]
[1749404642089,1.28697869,106250.0,106240.0,0.42868]
[1749404642588,1.28697869,106250.0,106240.0,0.6168259]
[1749404643293,1.28697869,106250.0,106240.0,0.42868]
[1749404643889,1.28697869,106250.0,106240.0,0.79822044]
[1749404644787,1.28697869,106250.0,106240.0,0.50543124]
[1749404645090,1.46651807,106250.0,106240.0,0.50543124]
[1749404645286,1.46651807,106250.0,106240.0,0.50948002]
[1749404645489,1.28697869,106250.0,106240.0,0.50948002]
[1749404647092,1.10743931,106250.0,106240.0,0.50948002]
[1749404647292,1.28697869,106250.0,106240.0,0.50948002]
[1749404647491,1.28697869,106250.0,106240.0,0.68128002]
[1749404649893,1.28697869,106250.0,106240.0,0.86942592]
[1749404651995,1.11867869,106250.0,106240.0,0.86942592]
[1749404652592,0.6388758,106250.0,106240.0,1.14308737]
[1749404652795,0.45761518,106250.0,106240.0,1.14308737]
[1749404652996,0.45761518,106250.0,106240.0,1.43587657]
[1749404653294,0.45761518,106250.0,106240.0,1.79667657]
[1749404653703,0.35869518,106250.0,106240.0,1.61713719]
[1749404653893,0.45781518,106250.0,106240.0,1.79667657]
[1749404654090,0.17973938,106250.0,106240.0,1.79667657]
[1749404654294,0.09932,106250.0,106240.0,1.79667657]
[1749404654494,0.46678758,106250.0,106240.0,2.00183817]
[1749404654799,0.27865938,106250.0,106240.0,2.00183817]
[1749404654996,0.27865938,106250.0,106240.0,1.70904897]
[1749404655299,0.27885938,106250.0,106240.0,1.70904897]
[1749404656497,0.0002,106250.0,106240.0,2.00594897]
[1749404656701,0.09932,106250.0,106240.0,2.00594897]
[1749404656901,0.09932,106250.0,106240.0,1.80078737]
[1749404657103,0.09932,106250.0,106240.0,2.09357657]
[1749404658192,0.09932,106250.0,106240.0,2.4736192]
[1749404658395,0.09932,106250.0,106240.0,2.18083]
[1749404660100,0.27885938,106250.0,106240.0,2.18083]
[1749404661404,0.17973938,106250.0,106240.0,2.18083]
[1749404661997,0.17953938,106250.0,106240.0,2.18083]
[1749404662203,0.17973938,106250.0,106240.0,2.18083]
[1749404665707,0.17973938,106250.0,106240.0,1.82003]
[1749404666004,0.17973938,106250.0,106240.0,2.18083]
[1749404674908,0.17973938,106250.0,106240.0,1.43998737]
[1749404675206,0.17973938,106250.0,106240.0,1.80078737]
[1749404676007,0.17973938,106250.0,106240.0,2.18083]
[1749404676409,1.34767047,106250.0,106240.0,0.46084265]
[1749404676609,1.81717047,106250.0,106240.0,0.95901485]
[1749404677113,1.81717047,106250.0,106240.0,0.28595891]
[1749404677308,1.81717047,106250.0,106240.0,0.71499891]
[1749404677804,1.81717047,106250.0,106240.0,0.71495891]
[1749404678804,1.81717047,106250.0,106240.0,0.50980002]
[1749404679500,1.81717047,106250.0,106240.0,0.69794592]
[1749404680508,1.81717047,106250.0,106240.0,0.69786592]
[1749404680909,1.81717047,106250.0,106240.0,0.26894592]
[1749404681209,1.81717047,106250.0,106240.0,0.69782592]
[1749404681411,1.81717047,106250.0,106240.0,0.26894592]
[1749404681611,1.81717047,106250.0,106240.0,0.69782592]
[1749404686814,1.45637047,106250.0,106240.0,0.69782592]
[1749404687113,1.81717047,106250.0,106240.0,0.69782592]
[1749404687313,1.81717047,106250.0,106240.0,0.90291347]
[1749404687710,1.45637047,106250.0,106240.0,0.90291347]
[1749404687913,1.81717047,106250.0,106240.0,0.90291347]
[1749404690015,1.14923938,106250.0,106240.0,0.90291347]
[1749404690219,1.18782289,106250.0,106240.0,0.99703554]
[1749404690414,0.38755938,106250.0,106240.0,1.53737492]
[1749404690819,0.38755938,106250.0,106240.0,0.99703554]
[1749404691019,0.38735938,106250.0,106240.0,1.35783554]
[1749404691221,0.38755938,106250.0,106240.0,0.99703554]
[1749404693421,0.38755938,106250.0,106240.0,1.29004885]
[1749404693722,0.38755938,106250.0,106240.0,1.0849613]
[1749404694718,0.68782289,106250.0,106240.0,1.0849613]
[1749404695120,0.87596379,106250.0,106240.0,1.0849613]
[1749404697423,0.69642441,106250.0,106240.0,1.0849613]
[1749404697622,0.68782289,106250.0,106240.0,1.0849613]
[1749404698125,1.23676389,106250.0,106240.0,0.56195923]
[1749404698327,1.23676389,106250.0,106240.0,0.99067923]
[1749404698526,1.23676389,106250.0,106240.0,0.69766592]
[1749404698820,1.23676389,106250.0,106240.0,0.26894592]
[1749404699022,1.23676389,106250.0,106240.0,0.69770592]
[1749404702221,1.23676389,106250.0,106240.0,0.26894592]
[1749404702528,1.23676389,106250.0,106240.0,0.69778592]
[1749404704319,1.73676389,106250.0,106240.0,0.69770592]
[1749404705631,1.37596389,106250.0,106240.0,0.69770592]
[1749404705827,1.73676389,106250.0,106240.0,0.69770592]
[1749404706023,1.73676389,106250.0,106240.0,0.26894592]
[1749404706229,1.73676389,106250.0,106240.0,0.50952002]
[1749404706435,1.55722451,106250.0,106240.0,0.90315748]
[1749404706627,1.73676389,106250.0,106240.0,0.50952002]
[1749404706834,1.73676389,106250.0,106240.0,0.9031774]
[1749404707033,1.73676389,106250.0,106240.0,0.4744574]
[1749404707237,1.73676389,106250.0,106240.0,0.9031774]
[1749404707928,1.73676389,106250.0,106240.0,0.69767872]
[1749404711740,1.73676389,106250.0,106240.0,0.99069203]
[1749404712439,1.79096389,106250.0,106240.0,0.69767872]
[1749404713042,1.79096569,106250.0,106240.0,0.69767872]
[1749404714437,1.79096569,106250.0,106240.0,0.26895872]
[1749404714637,1.79096569,106250.0,106240.0,0.69771872]
[1749404715842,1.79096569,106250.0,106240.0,0.99073203]
[1749404716043,1.60282289,106250.0,106240.0,0.99073203]
[1749404716239,0.93992289,106250.0,106240.0,1.09953203]
[1749404716446,0.93972289,106250.0,106240.0,1.15723203]
[1749404716649,0.93992289,106250.0,106240.0,1.15723203]
[1749404717738,0.57912289,106250.0,106240.0,1.15723203]
[1749404717939,0.93992289,106250.0,106240.0,1.15723203]
[1749404718142,0.57912289,106250.0,106240.0,1.15723203]
[1749404718346,0.93992289,106250.0,106240.0,1.15723203]
[1749404719647,0.66126351,106250.0,106240.0,1.15723203]
[1749404719844,0.93972289,106250.0,106240.0,1.2513541]
[1749404720040,0.93992289,106250.0,106240.0,1.2513541]
[1749404726253,0.93992289,106250.0,106240.0,1.2890041]
[1749404730253,0.57912289,106250.0,106240.0,1.2890041]
[1749404730558,0.93992289,106250.0,106240.0,1.2890041]
[1749404733362,0.57912289,106250.0,106240.0,1.2890041]
[1749404734961,0.93992289,106250.0,106240.0,1.2890041]
[1749404735860,0.99822289,106250.0,106240.0,1.2890041]
[1749404737760,0.81868351,106250.0,106240.0,1.2890041]
[1749404737962,0.99822289,106250.0,106240.0,1.2890041]
[1749404738762,1.05572289,106250.0,106240.0,1.2890041]
[1749404744669,1.05572289,106250.0,106240.0,1.3172341]
[1749404744869,1.11452289,106250.0,106240.0,1.3172341]
[1749404745568,0.75372289,106250.0,106240.0,1.3172341]
[1749404745770,1.11452289,106250.0,106240.0,1.3172341]
[1749404746064,0.63965938,106250.0,106240.0,1.49677348]
[1749404746372,0.27865938,106250.0,106240.0,1.70229099]
[1749404746569,0.27885938,106250.0,106240.0,1.20376017]
[1749404747871,0.27885938,106250.0,106240.0,1.49677348]
[1749404748171,0.27885938,106250.0,106240.0,1.49673348]
[1749404750170,0.27885938,106250.0,106240.0,1.85753348]
[1749404752171,0.27885938,106250.0,106240.0,1.56452017]
[1749404752774,0.27885938,106250.0,106240.0,1.8580449]
[1749404753875,0.17953938,106250.0,106240.0,1.8580449]
[1749404754176,0.17973938,106250.0,106240.0,1.85797764]
[1749404754973,0.6556906,106270.0,106240.0,1.85797764]
[1749404754974,0.4205416,106270.0,106260.0,0.1881269]
[1749404755273,1.61056449,106270.0,106260.0,0.82213849]
[1749404755475,1.29887369,106270.0,106260.0,0.98453849]
[1749404755675,1.29887369,106270.0,106260.0,1.07866056]
[1749404756968,1.30087369,106270.0,106260.0,1.07866056]
[1749404757474,1.30287369,106270.0,106260.0,1.07866056]
[1749404757771,1.30287369,106270.0,106260.0,1.37207467]
[1749404757977,1.30287369,106270.0,106260.0,1.16674308]
[1749404758369,1.12333431,106270.0,106260.0,1.16674308]
[1749404758568,1.30287369,106270.0,106260.0,0.87332897]
[1749404759077,1.30287369,106270.0,106260.0,0.91096897]
[1749404761777,1.30287369,106270.0,106260.0,0.85716897]
[1749404762781,1.30287369,106270.0,106260.0,0.74856897]
[1749404763785,1.30287369,106270.0,106260.0,0.77679897]
[1749404764180,1.30287369,106270.0,106260.0,0.98194161]
[1749404764970,0.94207369,106270.0,106260.0,0.98194161]
[1749404765174,1.30287369,106270.0,106260.0,0.98194161]
[1749404765481,0.94207369,106270.0,106260.0,0.98194161]
[1749404765684,1.30287369,106270.0,106260.0,0.98194161]
[1749404766187,1.30287369,106270.0,106260.0,0.98595039]
[1749404768382,1.98241307,106270.0,106260.0,0.27506142]
[1749404768684,1.98241307,106270.0,106260.0,0.89182832]
[1749404768884,1.98241307,106270.0,106260.0,0.70370142]
[1749404769184,1.98241307,106270.0,106260.0,0.89182832]
[1749404769574,1.98241307,106270.0,106260.0,0.46318832]
[1749404769781,1.98241307,106270.0,106260.0,0.89182832]
[1749404774286,2.34321307,106270.0,106260.0,0.89182832]
[1749404778296,2.34321307,106270.0,106260.0,0.68668568]
[1749404780093,1.62161307,106270.0,106260.0,0.68668568]
[1749404780296,1.98241307,106270.0,106260.0,0.68668568]
[1749404781998,1.48241307,106270.0,106260.0,0.68668568]
[1749404782298,1.98241307,106270.0,106260.0,0.98009979]
[1749404784292,1.30287369,106270.0,106260.0,0.98009979]
[1749404784492,1.80287369,106270.0,106260.0,0.98009979]
[1749404788708,1.80287369,106270.0,106260.0,0.68668568]
[1749404790100,1.80283369,106270.0,106260.0,0.68668568]
[1749404794404,1.80283369,106270.0,106260.0,0.98009979]
[1749404799613,1.80283369,106270.0,106260.0,1.18552621]
[1749404799812,1.80283369,106270.0,106260.0,0.8921121]
[1749404800307,1.80283369,106270.0,106260.0,0.68668568]
[1749404800505,0.40368511,106270.0,106260.0,1.52656129]
[1749404800723,0.28296098,106270.0,106260.0,1.49242942]
[1749404801014,0.28276098,106270.0,106260.0,1.87247205]
[1749404801601,0.28296098,106270.0,106260.0,1.87247205]
[1749404802413,0.28276098,106270.0,106260.0,1.87247205]
[1749404802610,0.28096098,106270.0,106260.0,1.87247205]
[1749404802821,0.27996098,106270.0,106260.0,1.87247205]
[1749404806809,0.18088098,106270.0,106260.0,1.26429267]
[1749404807012,0.46805418,106270.0,106260.0,1.69281267]
[1749404807219,0.46805418,106270.0,106260.0,0.88425004]
[1749404807415,0.46805418,106270.0,106260.0,1.31277004]
[1749404808626,0.76831769,106270.0,106260.0,0.82825004]
[1749404808828,0.93511769,106270.0,106260.0,1.25677004]
[1749404811419,0.93411769,106270.0,106260.0,0.82825004]
[1749404811619,0.93611769,106270.0,106260.0,1.25673004]
[1749404811824,0.93811769,106270.0,106260.0,0.89593004]
[1749404814126,1.29891769,106270.0,106260.0,0.89593004]
[1749404814624,1.29891769,106270.0,106260.0,1.18903334]
[1749404815022,0.93811769,106270.0,106260.0,1.18903334]
[1749404815519,0.75857831,106270.0,106260.0,1.24503334]
[1749404815725,0.93811769,106270.0,106260.0,1.24503334]
[1749404818627,0.93811769,106270.0,106260.0,1.42457272]
[1749404819730,0.88361769,106270.0,106260.0,1.42457272]
[1749404819929,0.88361769,106270.0,106260.0,1.41217272]
[1749404820231,0.88361769,106270.0,106260.0,1.38693272]
[1749404821324,0.58322449,106270.0,106260.0,1.74773272]
[1749404822528,0.58322449,106270.0,106260.0,1.74777678]
[1749404824032,0.58322449,106270.0,106260.0,1.45462942]
[1749404824228,0.58322449,106270.0,106260.0,1.74779642]
[1749404824731,0.58322449,106270.0,106260.0,1.45462942]
[1749404827333,0.58322449,106270.0,106260.0,1.83467205]
[1749404828734,0.58322449,106270.0,106260.0,1.65513267]
[1749404829426,0.58322449,106270.0,106260.0,1.83467205]
[1749404829933,0.28296098,106270.0,106260.0,1.83467205]
[1749404834742,0.58322449,106270.0,106260.0,1.83467205]
[1749404840949,0.58322449,106270.0,106260.0,1.47387205]
[1749404841448,0.69332449,106270.0,106260.0,1.47387205]
[1749404842751,0.51378511,106270.0,106260.0,1.47387205]
[1749404842949,0.69332449,106270.0,106260.0,1.47387205]
[1749404849146,0.88143129,106270.0,106260.0,0.86585267]
[1749404849354,1.29773129,106270.0,106260.0,1.02884831]
[1749404851553,1.29773129,106270.0,106260.0,0.64880568]
[1749404852446,1.29773129,106270.0,106260.0,0.94238444]
[1749404852647,1.29773129,106270.0,106260.0,0.51398444]
[1749404852844,1.61647067,106270.0,106260.0,0.7194902]
[1749404853044,1.61819191,106270.0,106260.0,0.94238444]
[1749404853240,1.97727067,106270.0,106260.0,0.94238444]
[1749404855853,1.61647067,106270.0,106260.0,0.94238444]
[1749404856053,1.97727067,106270.0,106260.0,0.94238444]
[1749404856647,1.67700716,106270.0,106260.0,0.94238444]
[1749404856854,1.97727067,106270.0,106260.0,0.94238444]
[1749404858055,1.97727067,106270.0,106260.0,0.51398444]
[1749404858255,1.97727067,106270.0,106260.0,0.94238444]
[1749404859356,1.97727067,106270.0,106260.0,0.64880568]
[1749404860062,1.97727067,106270.0,106260.0,0.51398444]
[1749404860259,1.97727067,106270.0,106260.0,0.94238444]
[1749404860755,1.97727067,106270.0,106260.0,0.64880568]
[1749404864253,1.97727067,106270.0,106260.0,0.85420464]
[1749404864859,1.97727067,106270.0,106260.0,0.46071878]
[1749404865563,1.97727067,106270.0,106260.0,0.23767774]
[1749404868862,2.33807067,106270.0,106260.0,0.23767774]
[1749404873169,1.83807067,106270.0,106260.0,0.23767774]
[1749404876275,2.33807067,106270.0,106260.0,0.23767774]
[1749404879178,1.61647067,106270.0,106260.0,0.23767774]
[1749404879474,2.33807067,106270.0,106260.0,0.23767774]
[1749404880275,1.61647067,106270.0,106260.0,0.23767774]
[1749404880477,2.33807067,106270.0,106260.0,0.23767774]
[1749404882177,1.97899191,106270.0,106260.0,0.23767774]
[1749404882480,2.33807067,106270.0,106260.0,0.23767774]
[1749404886081,1.83807067,106270.0,106260.0,0.23767774]
[1749404889185,2.33807067,106270.0,106260.0,0.23767774]
[1749404894488,1.61647067,106270.0,106260.0,0.23767774]
[1749404894786,2.33807067,106270.0,106260.0,0.23767774]
[1749404895286,2.76479067,106270.0,106260.0,0.23767774]
[1749404899586,0.1881105,106260.0,106250.0,0.03764]
[1749404899793,0.1881282,106250.0,106240.0,1.2443321]
[1749404900090,0.82746758,106250.0,106240.0,1.2443321]
[1749404900290,0.82746758,106250.0,106240.0,0.53373]
[1749404900492,0.99686758,106250.0,106240.0,1.1502761]
[1749404900794,0.99686758,106250.0,106240.0,1.1522761]
[1749404901294,1.79713109,106250.0,106240.0,0.43129734]
[1749404902801,1.97667047,106250.0,106240.0,0.26489734]
[1749404903097,1.79713109,106250.0,106240.0,0.30254734]
[1749404904095,1.29713109,106250.0,106240.0,0.30254734]
[1749404904492,1.79713109,106250.0,106240.0,0.30254734]
[1749404907500,1.56069171,106250.0,106240.0,0.30254734]
[1749404907700,1.74023109,106250.0,106240.0,0.67697886]
[1749404911002,1.58423109,106250.0,106240.0,0.67697886]
[1749404911204,2.11163109,106250.0,106240.0,0.67697886]
[1749404911704,1.75083109,106250.0,106240.0,0.67697886]
[1749404911898,2.11163109,106250.0,106240.0,0.67697886]
[1749404914206,2.11163109,106250.0,106240.0,0.68102764]
[1749404923505,2.16783109,106250.0,106240.0,0.68102764]
[1749404925111,2.16783109,106250.0,106240.0,0.47559612]
[1749404927812,1.66783109,106250.0,106240.0,0.47559612]
[1749404928014,2.16783109,106250.0,106240.0,0.47559612]
[1749404929612,2.16783109,106250.0,106240.0,0.76917488]
[1749404930018,2.16783109,106250.0,106240.0,0.974907]
[1749404930212,2.22263109,106250.0,106240.0,0.974907]
[1749404930413,2.22263109,106250.0,106240.0,0.68132824]
[1749404930818,2.22263109,106250.0,106240.0,0.62502824]
[1749404932719,2.22263109,106250.0,106240.0,0.56882824]
[1749404933517,2.22263109,106250.0,106240.0,0.36309612]
[1749404934321,2.22263109,106250.0,106240.0,0.30659612]
[1749404934523,2.22263109,106250.0,106240.0,0.60017488]
[1749404935620,1.86183109,106250.0,106240.0,0.60017488]
[1749404935920,2.22263109,106250.0,106240.0,0.60017488]
[1749404936423,2.22263109,106250.0,106240.0,0.41202878]
[1749404936624,2.22263109,106250.0,106240.0,0.30659632]
[1749404937023,2.40217047,106250.0,106240.0,0.30659632]
[1749404937519,2.22263109,106250.0,106240.0,0.30659632]
[1749404944529,2.22263109,106250.0,106240.0,0.60017508]
[1749404947529,1.92236758,106250.0,106240.0,0.60017508]
[1749404947735,2.22263109,106250.0,106240.0,0.60017508]
[1749404949531,1.86183109,106250.0,106240.0,0.60017508]
[1749404949743,2.22263109,106250.0,106240.0,0.60017508]
[1749404953144,2.04309171,106250.0,106240.0,0.60017508]
[1749404953441,2.22263109,106250.0,106240.0,0.60017508]
[1749404954842,2.22263109,106250.0,106240.0,0.30659632]
[1749404958340,2.22263109,106250.0,106240.0,0.60017508]
[1749404959643,2.22263109,106250.0,106240.0,0.30659632]
[1749404961746,2.40217047,106250.0,106240.0,0.11845002]
[1749404962144,2.40217047,106250.0,106240.0,0.32424693]
[1749404962441,2.40217047,106250.0,106240.0,0.11845002]
[1749404962647,2.40217047,106250.0,106240.0,0.32424686]
[1749404963648,2.58170985,106250.0,106240.0,0.32424686]
[1749404963851,2.58170985,106250.0,106240.0,0.11845002]
[1749404964151,2.58170985,106250.0,106240.0,0.32425729]
[1749404964339,2.08170985,106250.0,106240.0,0.32425729]
[1749404964535,2.58170985,106250.0,106240.0,0.32425729]
[1749404964742,0.1881462,106240.0,106230.0,0.39714075]
[1749404964944,1.57355076,106240.0,106230.0,0.36890075]
[1749404965143,2.07355076,106240.0,106230.0,0.29372036]
[1749404965348,2.07355076,106240.0,106230.0,0.0001416]
[1749404965947,2.07355076,106240.0,106230.0,0.0021416]
[1749404967444,2.07355076,106240.0,106230.0,0.0031416]
[1749404969849,2.1484696,106240.0,106230.0,0.0031416]
[1749404973651,0.1881636,106230.0,106220.0,0.02824]
[1749404973946,0.1881813,106220.0,106210.0,0.20543895]
[1749404974141,1.37182357,106220.0,106210.0,0.20543895]
[1749404974346,1.39055988,106220.0,106210.0,0.20543895]
[1749404974545,1.39055988,106220.0,106210.0,0.21885265]
[1749404974750,1.40576838,106220.0,106210.0,0.21885265]
[1749404974955,1.40576838,106220.0,106210.0,0.21886097]
[1749404975149,1.40576838,106220.0,106210.0,0.20543895]
[1749404975749,1.40576838,106220.0,106210.0,0.21886144]
[1749404975947,1.38403207,106220.0,106210.0,0.22086144]
[1749404976452,1.36882357,106220.0,106210.0,0.23567895]
[1749404976649,1.06856006,106220.0,106210.0,0.25209982]
[1749404976846,1.36882357,106220.0,106210.0,0.25209981]
[1749404977052,1.36882357,106220.0,106210.0,0.2520998]
[1749404977354,1.36882357,106220.0,106210.0,0.25209982]
[1749404977553,1.36882357,106220.0,106210.0,0.23867895]
[1749404977751,1.36882357,106220.0,106210.0,0.2520946]
[1749404978458,1.36882357,106220.0,106210.0,0.25216781]
[1749404978650,1.36882357,106220.0,106210.0,0.23867895]
[1749404979453,1.36882357,106220.0,106210.0,0.2521678]
[1749404979857,1.38367815,106220.0,106210.0,0.2521678]
[1749404980352,1.38367815,106220.0,106210.0,0.23867895]
[1749404980758,1.38367815,106220.0,106210.0,0.25216691]
[1749404981260,1.38367815,106220.0,106210.0,0.25217662]
[1749404982155,1.38367815,106220.0,106210.0,0.23867895]
[1749404982362,1.38367815,106220.0,106210.0,0.25217661]
[1749404982563,1.38367815,106220.0,106210.0,0.23867895]
[1749404983159,1.38367815,106220.0,106210.0,0.25217604]
[1749404983858,1.38367815,106220.0,106210.0,0.25219564]
[1749404984060,1.38367815,106220.0,106210.0,0.25219563]
[1749404984260,1.40239942,106220.0,106210.0,0.23867895]
[1749404984963,1.40239942,106220.0,106210.0,0.25219563]
[1749404985861,1.40239942,106220.0,106210.0,0.25219575]
[1749404986351,1.40239942,106220.0,106210.0,0.23867895]
[1749404986556,1.40239942,106220.0,106210.0,0.25219974]
[1749404986963,1.04332066,106220.0,106210.0,0.25219974]
[1749404987161,1.40239942,106220.0,106210.0,0.25219974]
[1749404987864,1.40239942,106220.0,106210.0,0.23867895]
[1749404988365,1.90239942,106220.0,106210.0,0.23867895]
[1749404988564,1.90239942,106220.0,106210.0,0.25226052]
[1749404988759,2.0819388,106220.0,106210.0,0.25226052]
[1749404989165,2.5088588,106220.0,106210.0,0.25226052]
[1749404989364,2.5088588,106220.0,106210.0,0.24272773]
[1749404989559,2.5088588,106220.0,106210.0,0.256325]
[1749404989764,2.5088588,106220.0,106210.0,0.24272773]
[1749404989966,2.5088588,106220.0,106210.0,0.25633421]
[1749404990262,2.5088588,106220.0,106210.0,0.25633485]
[1749404991067,2.32931942,106220.0,106210.0,0.25633485]
[1749404991260,2.5088588,106220.0,106210.0,0.25637645]
[1749404991462,2.5088588,106220.0,106210.0,0.0373814]
[1749404992364,0.1882169,106200.0,106190.0,0.77332226]
[1749404992667,0.84683892,106200.0,106190.0,0.96154506]
[1749404992868,0.84683892,106200.0,106190.0,0.53318506]
[1749404993264,0.84695083,106200.0,106190.0,0.53318506]
[1749404994069,0.84695083,106200.0,106190.0,0.5482716]
[1749404994576,0.84695083,106200.0,106190.0,0.4541546]
[1749404994976,0.84695083,106200.0,106190.0,0.44006806]
[1749404995176,0.84695083,106200.0,106190.0,0.44206806]
[1749404995479,0.84695083,106200.0,106190.0,0.51713461]
[1749404995680,0.84695083,106200.0,106190.0,0.68233461]
[1749404996575,0.84695083,106200.0,106190.0,0.66923461]
[1749404996975,0.83777448,106200.0,106190.0,0.66923461]
[1749404997176,0.83777448,106200.0,106190.0,0.46388828]
[1749404997476,0.83777448,106200.0,106190.0,0.68240049]
[1749404997676,0.95097448,106200.0,106190.0,0.68240049]
[1749404998382,1.00567448,106200.0,106190.0,0.68240049]
[1749404999581,1.00567448,106200.0,106190.0,0.62500049]
[1749404999782,1.18521386,106200.0,106190.0,0.62500049]
[1749405001978,1.00567448,106200.0,106190.0,0.62500049]
[1749405002582,1.00567448,106200.0,106190.0,0.57220049]
[1749405003183,1.00567448,106200.0,106190.0,0.51720049]
[1749405003682,1.00567448,106200.0,106190.0,0.22362173]
[1749405004284,1.00567448,106200.0,106190.0,0.23729097]
[1749405004484,1.00567448,106200.0,106190.0,0.23729186]
[1749405004686,1.00567448,106200.0,106190.0,0.24134064]
[1749405004880,1.00567448,106200.0,106190.0,0.22767051]
[1749405005184,1.00567448,106200.0,106190.0,0.24134317]
[1749405005385,1.00567448,106200.0,106190.0,0.22767051]
[1749405005587,1.00567448,106200.0,106190.0,0.24134249]
[1749405006486,1.00567448,106200.0,106190.0,0.24134317]
[1749405006681,1.00567448,106200.0,106190.0,0.24134183]
[1749405006881,1.17603751,106200.0,106190.0,0.22767051]
[1749405007185,1.17603751,106200.0,106190.0,0.24134519]
[1749405007886,1.17603751,106200.0,106190.0,0.53492395]
[1749405008188,1.17603751,106200.0,106190.0,0.53486071]
[1749405008380,1.17603751,106200.0,106190.0,0.53486272]
[1749405008575,1.17603751,106200.0,106190.0,0.53486008]
[1749405008885,1.17603751,106200.0,106190.0,0.53486075]
[1749405009683,1.17603751,106200.0,106190.0,0.52124927]
[1749405009886,1.17603751,106200.0,106190.0,0.53486199]
[1749405010082,1.47630102,106200.0,106190.0,0.53486199]
[1749405010388,1.47630102,106200.0,106190.0,0.53486732]
[1749405010585,1.47630102,106200.0,106190.0,0.5348613]
[1749405010990,1.47630102,106200.0,106190.0,0.53486197]
[1749405011292,1.47630102,106200.0,106190.0,0.53486734]
[1749405011590,1.47630102,106200.0,106190.0,0.53486265]
[1749405011790,1.47630102,106200.0,106190.0,0.53486333]
[1749405011990,1.47630102,106200.0,106190.0,0.52124927]
[1749405012490,1.47630102,106200.0,106190.0,0.5348633]
[1749405013293,1.47630102,106200.0,106190.0,0.53487129]
[1749405013488,1.47630102,106200.0,106190.0,0.53487162]
[1749405013792,1.47630102,106200.0,106190.0,0.53488075]
[1749405014608,1.47630102,106200.0,106190.0,0.53488644]
[1749405014890,1.11550102,106200.0,106190.0,0.53488644]
[1749405015092,1.47630102,106200.0,106190.0,0.50256068]
[1749405015292,1.47630102,106200.0,106190.0,0.50255612]
[1749405015494,1.47630102,106200.0,106190.0,0.50256723]
[1749405015690,1.47630102,106200.0,106190.0,0.20898582]
[1749405015888,1.47630102,106200.0,106190.0,0.19527158]
[1749405016092,1.47630102,106200.0,106190.0,0.20899078]
[1749405016389,1.47630102,106200.0,106190.0,0.20899025]
[1749405016595,1.47630102,106200.0,106190.0,0.20898991]
[1749405016997,1.4671242,106200.0,106190.0,0.19527158]
[1749405017194,1.4671242,106200.0,106190.0,0.20899023]
[1749405017496,1.4671242,106200.0,106190.0,0.19527158]
[1749405017697,1.4671242,106200.0,106190.0,0.20899023]
[1749405018192,2.14666358,106200.0,106190.0,0.02076743]
[1749405018392,2.50735167,106200.0,106190.0,0.02076743]
[1749405018596,2.50735167,106200.0,106190.0,0.21270443]
[1749405018795,2.50735167,106200.0,106190.0,0.22648919]
[1749405019093,2.50735167,106200.0,106190.0,0.21270443]
[1749405019294,2.32781229,106200.0,106190.0,0.41467774]
[1749405019790,2.33181229,106200.0,106190.0,0.41267774]
[1749405019996,2.33181229,106200.0,106190.0,0.22444334]
[1749405020193,2.33181229,106200.0,106190.0,0.21070443]
[1749405020395,1.97273353,106200.0,106190.0,0.20701793]
[1749405020589,2.33181229,106200.0,106190.0,0.19328318]
[1749405020984,1.19262997,106200.0,106190.0,0.20697007]
[1749405021189,1.29154997,106200.0,106190.0,0.19328318]
[1749405021397,1.29154997,106200.0,106190.0,0.32033816]
[1749405021587,1.29154997,106200.0,106190.0,0.30668318]
[1749405021790,1.29154997,106200.0,106190.0,0.32032573]
[1749405021990,1.29174997,106200.0,106190.0,0.32032574]
[1749405022192,1.29174997,106200.0,106190.0,0.30668318]
[1749405022596,1.29174997,106200.0,106190.0,0.32033597]
[1749405022893,1.29174997,106200.0,106190.0,0.30668318]
[1749405023098,1.29174997,106200.0,106190.0,0.32033601]
[1749405023398,1.29174997,106200.0,106190.0,0.26413601]
[1749405023597,1.29174997,106200.0,106190.0,0.26413566]
[1749405024491,1.29174997,106200.0,106190.0,0.25048318]
[1749405024697,1.29174997,106200.0,106190.0,0.26413866]
[1749405024899,1.29174997,106200.0,106190.0,0.26413864]
[1749405025099,1.29174997,106200.0,106190.0,0.25048318]
[1749405025302,1.29174997,106200.0,106190.0,0.26413864]
[1749405025608,1.29174997,106200.0,106190.0,0.20693867]
[1749405025902,1.29174997,106200.0,106190.0,0.19328318]
[1749405026101,1.29174997,106200.0,106190.0,0.20693866]
[1749405026301,1.29174997,106200.0,106190.0,0.20693832]
[1749405026702,1.29174997,106200.0,106190.0,0.20693831]
[1749405026899,1.28257325,106200.0,106190.0,0.20693831]
[1749405027300,1.28257325,106200.0,106190.0,0.19328318]
[1749405027605,1.28257325,106200.0,106190.0,0.20686931]
[1749405027802,1.28257325,106200.0,106190.0,0.19328318]
[1749405028695,0.98230974,106200.0,106190.0,0.20686934]
[1749405028897,1.28257325,106200.0,106190.0,0.19328318]
[1749405029105,1.28257325,106200.0,106190.0,0.20686936]
[1749405029506,1.28257325,106200.0,106190.0,0.19328318]
[1749405030005,1.28257325,106200.0,106190.0,0.20685568]
[1749405030211,1.28257325,106200.0,106190.0,0.20685565]
[1749405030814,1.10303387,106200.0,106190.0,0.20685565]
[1749405031100,0.98226974,106200.0,106190.0,0.19328318]
[1749405031407,0.98226974,106200.0,106190.0,0.36982593]
[1749405031408,0.87076974,106200.0,106190.0,0.36982593]
[1749405031707,0.87096974,106200.0,106190.0,0.36982593]
[1749405032307,0.87096974,106200.0,106190.0,0.35628318]
[1749405032506,0.87096974,106200.0,106190.0,0.36981298]
[1749405032704,0.87096974,106200.0,106190.0,0.36981511]
[1749405033411,0.87096974,106200.0,106190.0,0.36981377]
[1749405034697,0.87096974,106200.0,106190.0,0.3698028]
[1749405034902,0.87096974,106200.0,106190.0,0.36980283]
[1749405035212,0.87096974,106200.0,106190.0,0.35628318]
[1749405035406,0.92426974,106200.0,106190.0,0.36980284]